bitfinex/quotes_SOLUSD_20240708
["timestamp","ask_amount","ask_price","bid_price","bid_amount"]
[1720436145672,1.6503255,139.95,139.88,0.17]
[1720436146353,7.1484,139.9,139.82,7.1515]
[1720436146551,27.1487,139.89,139.83,7.1514]
[1720436146755,7.1499,139.87,139.81,15.3081]
[1720436146947,20.0,139.86,139.81,22.4603]
[1720436147147,7.149,139.88,139.81,22.4603]
[1720436147477,20.0,139.87,139.84,7.1509]
[1720436147776,19.5142255,139.95,139.81,15.3081]
[1720436147940,1.6503255,139.95,139.81,115.3081]
[1720436148371,8.7958255,139.95,139.89,7.1484]
[1720436148557,1.6503255,139.95,139.9,0.17]
[1720436149150,8.7957255,139.95,139.9,0.17]
[1720436149348,1.6503255,139.95,139.9,0.17]
[1720436149688,38.7,140.0,139.9,0.17]
[1720436149892,1.6503255,140.0,139.9,0.17]
[1720436150390,38.7,140.0,139.9,0.17]
[1720436150574,17.8608,139.98,139.9,0.17]
[1720436150772,1.6503255,139.97,139.9,0.17]
[1720436150965,7.1463,139.94,139.9,0.17]
[1720436151165,1.6503255,139.97,139.9,0.17]
[1720436151960,7.1465,139.93,139.9,0.17]
[1720436152391,7.1465,139.93,139.89,16.2859]
[1720436152392,19.5122255,139.97,139.89,16.2859]
[1720436152686,7.147,139.92,139.89,16.2859]
[1720436152893,20.0,139.91,139.89,16.2859]
[1720436153458,20.0,139.92,139.89,16.2859]
[1720436153663,19.5122255,139.97,139.84,16.3334]
[1720436153664,7.1493,139.88,139.84,16.3334]
[1720436153886,27.1496,139.87,139.84,16.3334]
[1720436154059,7.1501,139.86,139.81,0.1]
[1720436154378,20.0,139.85,139.81,0.1]
[1720436154699,7.1516,139.83,139.81,0.1]
[1720436154902,7.1511,139.84,139.81,0.1]
[1720436155092,20.0,139.83,139.81,0.1]
[1720436155275,27.1516,139.83,139.81,0.1]
[1720436155470,20.0,139.83,139.81,0.1]
[1720436155687,20.0,139.85,139.81,0.1]
[1720436156104,27.1506,139.85,139.81,0.1]
[1720436156296,20.0,139.85,139.81,0.1]
[1720436156478,7.151,139.84,139.81,0.1]
[1720436156680,27.1519,139.83,139.81,0.1]
[1720436156978,7.152,139.82,139.81,0.1]
[1720436157181,27.152,139.82,139.81,0.1]
[1720436157907,7.154,139.78,139.77,0.04239412]
[1720436158079,20.0,139.78,139.77,0.04239412]
[1720436160572,27.154,139.78,139.77,0.04239412]
[1720436162273,20.0,139.78,139.77,0.04239412]
[1720436162474,38.7,139.83,139.77,0.04239412]
[1720436162678,7.1521,139.82,139.77,0.04239412]
[1720436162991,7.1532,139.8,139.77,0.04239412]
[1720436163787,17.8738,139.87,139.77,0.04239412]
[1720436163988,17.8738,139.87,139.78,7.1535]
[1720436164176,7.1516,139.83,139.79,15.1962]
[1720436164379,7.1521,139.82,139.79,15.1962]
[1720436165019,17.8738,139.87,139.79,15.1962]
[1720436165313,7.1516,139.83,139.79,15.1962]
[1720436165491,20.0,139.82,139.79,15.1962]
[1720436165810,27.152,139.82,139.79,15.1962]
[1720436165984,20.0,139.82,139.79,15.1962]
[1720436166530,27.152,139.82,139.79,15.1962]
[1720436167007,20.0,139.82,139.79,15.1962]
[1720436167394,7.153,139.8,139.79,15.1962]
[1720436167593,27.153,139.8,139.79,15.0262]
[1720436167799,20.0,139.8,139.79,15.0262]
[1720436168115,27.153,139.8,139.79,15.0262]
[1720436168287,20.0,139.8,139.77,0.04239412]
[1720436168487,7.1536,139.79,139.77,0.04239412]
[1720436168694,20.0,139.78,139.77,0.04239412]
[1720436169105,27.154,139.78,139.77,0.04239412]
[1720436169309,20.0,139.78,139.77,0.04239412]
[1720436169511,27.154,139.78,139.77,0.04239412]
[1720436170794,20.0,139.78,139.77,0.04239412]
[1720436171019,20.17,139.78,139.65,15.7198]
[1720436171234,7.1602,139.66,139.65,15.7198]
[1720436171434,7.1602,139.66,139.58,13.7463]
[1720436171435,7.1615,139.64,139.58,22.3021]
[1720436171602,7.1615,139.64,139.58,29.466]
[1720436171803,7.1608,139.65,139.59,7.1638]
[1720436172016,20.0,139.64,139.59,7.1638]
[1720436172219,7.1608,139.65,139.59,7.1638]
[1720436172422,7.1607,139.66,139.58,22.3021]
[1720436172619,20.0,139.65,139.59,7.1634]
[1720436172800,20.0,139.65,139.6,7.1633]
[1720436173007,20.0,139.65,139.61,7.2623]
[1720436173199,7.1608,139.65,139.61,0.1]
[1720436173910,7.16,139.67,139.61,7.2626]
[1720436174226,20.0,139.66,139.62,7.1622]
[1720436174425,56.5925,139.73,139.61,0.1]
[1720436174721,7.1587,139.69,139.63,7.1616]
[1720436174921,27.1592,139.68,139.62,7.1621]
[1720436175117,20.0,139.72,139.63,0.17]
[1720436175498,7.1572,139.72,139.66,7.16]
[1720436175697,7.1572,139.72,139.63,0.17]
[1720436175698,7.1572,139.72,139.67,0.17]
[1720436175908,17.8939,139.72,139.61,0.1]
[1720436176131,1.6503255,139.72,139.64,7.1609]
[1720436176424,1.6503255,139.72,139.61,0.1]
[1720436176616,7.1585,139.7,139.64,7.1611]
[1720436176802,1.6503255,139.72,139.61,0.1]
[1720436176999,7.1576,139.71,139.65,7.1606]
[1720436177195,1.6503255,139.72,139.61,0.1]
[1720436177404,1.6503255,139.71,139.61,0.1]
[1720436177602,7.1606,139.66,139.61,0.1]
[1720436177904,17.8959,139.7,139.61,0.1]
[1720436178099,7.1604,139.66,139.61,0.1]
[1720436178341,7.1608,139.65,139.61,0.1]
[1720436178503,7.1622,139.62,139.61,0.1]
[1720436178803,7.1659,139.55,139.49,7.1686]
[1720436179003,26.3186,139.62,139.43,15.4143]
[1720436179004,1.6503255,139.54,139.43,15.4143]
[1720436179341,7.1684,139.5,139.43,22.5863]
[1720436179629,38.7,139.52,139.43,15.4143]
[1720436179847,7.1696,139.48,139.43,15.4143]
[1720436180027,27.1701,139.47,139.43,15.4143]
[1720436180227,20.0,139.47,139.41,0.1]
[1720436180450,7.1711,139.45,139.41,0.1]
[1720436180625,7.1706,139.46,139.41,0.1]
[1720436180947,7.1715,139.44,139.41,0.1]
[1720436181129,20.0,139.43,139.41,0.1]
[1720436181448,1.6503255,139.44,139.41,0.1]
[1720436181647,17.9174,139.53,139.41,0.1]
[1720436181838,20.0,139.49,139.41,0.1]
[1720436182029,7.1679,139.52,139.45,7.1708]
[1720436182346,21.6503255,139.51,139.41,0.1]
[1720436182528,21.6503255,139.51,139.42,7.1724]
[1720436182729,1.6503255,139.5,139.43,7.172]
[1720436182936,28.8190255,139.5,139.42,7.1721]
[1720436183136,1.6503255,139.5,139.41,0.1]
[1720436183423,7.1715,139.45,139.41,0.1]
[1720436183630,40.3503255,139.5,139.41,0.1]
[1720436183631,20.0,139.44,139.41,0.1]
[1720436184226,7.1725,139.42,139.41,0.1]
[1720436184435,27.1725,139.42,139.41,0.1]
[1720436184953,58.7,139.42,139.41,0.1]
[1720436185249,20.0,139.42,139.41,0.1]
[1720436185663,27.1725,139.42,139.41,0.1]
[1720436187357,58.87,139.42,139.34,0.04252495]
[1720436187542,7.1757,139.36,139.34,0.04252495]
[1720436187746,20.0,139.35,139.34,0.04252495]
[1720436188454,27.1761,139.35,139.34,0.04252495]
[1720436188969,28.57701518,139.35,139.34,0.04252495]
[1720436189668,20.0,139.35,139.34,0.04252495]
[1720436190136,27.1761,139.35,139.34,0.04252495]
[1720436190537,20.0,139.35,139.34,0.04252495]
[1720436191354,27.1761,139.35,139.34,0.04252495]
[1720436192456,102.9920928,139.35,139.34,2.495e-05]
[1720436192660,8.86590407,139.34,139.31,0.1]
[1720436192842,19.82,139.35,139.31,0.1]
[1720436193158,17.9276,139.45,139.31,0.1]
[1720436193362,7.1735,139.41,139.35,7.1761]
[1720436193667,17.9311,139.43,139.31,0.1]
[1720436193960,7.1746,139.38,139.32,7.1775]
[1720436194248,1.6503255,139.37,139.33,7.1771]
[1720436194653,1.6503255,139.37,139.31,0.1]
[1720436194654,8.8254255,139.37,139.31,0.1]
[1720436194866,1.6503255,139.37,139.31,0.1]
[1720436195468,1.6503255,139.37,139.31,0.27]
[1720436195972,26.79270407,139.46,139.32,15.3184]
[1720436196175,7.1726,139.42,139.36,7.1755]
[1720436196475,7.1725,139.43,139.33,6.6426]
[1720436196771,1.60463941,139.41,139.33,6.6426]
[1720436197450,1.60463941,139.41,139.35,7.176]
[1720436197768,8.77783941,139.41,139.34,7.1761]
[1720436197973,1.60463941,139.41,139.33,6.6426]
[1720436198846,8.77803941,139.41,139.35,7.1759]
[1720436199144,20.0,139.4,139.32,15.3184]
[1720436199348,1.60517458,139.39,139.32,15.3184]
[1720436199549,7.1752,139.37,139.32,15.3184]
[1720436200052,7.1761,139.35,139.32,15.3184]
[1720436200254,1.60517458,139.39,139.32,15.3184]
[1720436200460,8.78040442,139.38,139.32,22.496]
[1720436200660,27.1752,139.37,139.32,15.3184]
[1720436201179,20.0,139.37,139.32,15.3184]
[1720436201356,7.1765,139.35,139.32,15.3184]
[1720436201673,7.1763,139.35,139.32,15.3184]
[1720436202180,1.60570442,139.36,139.32,15.3184]
[1720436202558,8.78140442,139.36,139.32,15.3184]
[1720436202763,1.60570442,139.36,139.32,15.3184]
[1720436203279,1.60570442,139.36,139.33,7.1771]
[1720436203660,1.60570442,139.36,139.32,22.496]
[1720436203974,1.60570442,139.36,139.32,15.3184]
[1720436204155,8.78242897,139.35,139.32,15.3184]
[1720436204482,7.1772,139.33,139.31,0.1]
[1720436204862,7.1767,139.34,139.31,0.1]
[1720436205071,8.78252897,139.35,139.31,0.1]
[1720436205281,1.60622897,139.35,139.31,0.1]
[1720436205574,7.1767,139.34,139.31,0.1]
[1720436205766,1.60622897,139.35,139.31,0.1]
[1720436205767,8.78252897,139.35,139.31,0.1]
[1720436205962,1.60622897,139.35,139.31,0.1]
[1720436206383,7.1773,139.33,139.31,0.1]
[1720436206681,7.177,139.34,139.31,0.1]
[1720436206879,7.1774,139.33,139.31,0.1]
[1720436207185,7.1777,139.32,139.31,0.1]
[1720436208775,17.9475,139.3,139.23,16.2355]
[1720436208980,37.48802897,139.35,139.21,7.56978675]
[1720436209167,7.1816,139.25,139.21,7.56978675]
[1720436209561,7.1809,139.26,139.21,0.1]
[1720436209786,7.1804,139.27,139.21,0.1]
[1720436209975,7.1808,139.26,139.21,0.1]
[1720436210175,7.1814,139.25,139.21,0.1]
[1720436210381,6.05,139.3,139.21,0.1]
[1720436210686,17.9497,139.28,139.21,0.1]
[1720436210895,7.1818,139.24,139.21,0.1]
[1720436211196,7.1828,139.22,139.21,0.1]
[1720436211576,20.0,139.29,139.21,0.1]
[1720436211776,7.1804,139.27,139.21,7.2829]
[1720436211971,20.0,139.29,139.21,0.1]
[1720436212194,37.9491,139.29,139.21,0.1]
[1720436212878,17.9527,139.26,139.21,0.1]
[1720436213282,7.1828,139.22,139.21,0.1]
[1720436214806,27.1828,139.22,139.21,0.1]
[1720436216607,27.3528,139.22,139.21,0.1]
[1720436216901,7.1866,139.15,139.11,0.1]
[1720436217111,1.60674829,139.14,139.11,0.1]
[1720436217685,20.0,139.22,139.17,17.9626]
[1720436217902,1.66547488,139.21,139.11,0.1]
[1720436218209,1.66547488,139.21,139.18,17.9615]
[1720436218418,1.66547488,139.21,139.19,7.1843]
[1720436218602,1.66547488,139.21,139.18,17.9615]
[1720436218784,1.66547488,139.21,139.19,7.1843]
[1720436219203,1.66547488,139.21,139.18,17.9615]
[1720436219517,1.66547488,139.21,139.16,16.6067]
[1720436220009,1.66547488,139.21,139.18,7.1848]
[1720436220216,1.66547488,139.21,139.2,7.1839]
[1720436220395,7.1827,139.23,139.16,16.6067]
[1720436220595,45.19,139.33,139.17,7.1852]
[1720436220596,17.9513,139.27,139.17,7.1852]
[1720436220914,17.9513,139.27,139.16,34.5713]
[1720436220915,26.0272928,139.27,139.16,34.5713]
[1720436221113,7.1821,139.24,139.18,7.1844]
[1720436221313,7.1824,139.23,139.17,7.1854]
[1720436221607,7.183,139.22,139.16,23.7922]
[1720436221810,7.1834,139.21,139.16,16.6067]
[1720436222015,7.1834,139.21,139.16,23.7925]
[1720436222311,17.954,139.25,139.16,16.6067]
[1720436222480,7.1835,139.21,139.16,16.6067]
[1720436222679,7.183,139.22,139.16,23.7926]
[1720436223181,17.954,139.25,139.16,16.6067]
[1720436223393,7.184,139.2,139.16,16.6067]
[1720436223792,35.9043,139.26,139.16,16.6067]
[1720436223793,7.1844,139.19,139.16,16.6067]
[1720436224005,7.184,139.2,139.16,16.6067]
[1720436224610,7.1844,139.19,139.16,16.6067]
[1720436224988,7.186,139.16,139.12,6.007]
[1720436225188,35.9159,139.22,139.11,16.3298]
[1720436225396,20.0,139.21,139.11,16.3298]
[1720436225617,7.1871,139.14,139.11,16.3298]
[1720436225787,17.9626,139.18,139.11,16.3298]
[1720436225989,7.1855,139.17,139.11,23.5182]
[1720436226220,7.185,139.18,139.11,16.3298]
[1720436226516,7.1834,139.21,139.11,16.3298]
[1720436226808,8.84963227,139.2,139.14,17.9667]
[1720436227188,8.84963227,139.2,139.14,25.1536]
[1720436227588,8.84923227,139.2,139.14,17.9667]
[1720436227808,1.66533227,139.2,139.16,7.1859]
[1720436228240,1.66533227,139.2,139.17,7.1853]
[1720436228591,1.66533227,139.2,139.11,16.3298]
[1720436228815,1.66533227,139.2,139.16,7.1858]
[1720436229117,1.66533227,139.2,139.16,17.9645]
[1720436229287,1.66533227,139.2,139.16,25.1499]
[1720436229484,1.66533227,139.2,139.16,17.9645]
[1720436229684,1.66533227,139.2,139.13,25.1552]
[1720436229907,17.9565,139.23,139.13,17.9678]
[1720436229908,7.1854,139.18,139.13,17.9678]
[1720436230135,7.1855,139.17,139.11,23.5181]
[1720436230335,7.186,139.16,139.11,16.3298]
[1720436230911,7.188,139.12,139.11,16.3298]
[1720436231125,7.188,139.12,139.11,0.1]
[1720436231325,25.158,139.12,139.11,0.1]
[1720436231532,6.4382,139.11,138.94,16.3298]
[1720436231737,10.88051928,139.1,138.92,16.35145352]
[1720436231917,17.9838,139.02,138.92,16.35145352]
[1720436232124,17.977,139.07,138.95,17.9918]
[1720436232329,20.0,139.06,138.92,16.35145352]
[1720436232711,8.8592769,139.07,138.99,17.9857]
[1720436232913,5.45339191,139.12,139.04,17.9804]
[1720436233131,8.85396203,139.11,139.04,25.1721]
[1720436233347,7.1949,138.99,138.96,15.4102]
[1720436233638,6.3827,139.05,138.92,0.04265352]
[1720436233943,7.1938,139.01,138.94,7.1972]
[1720436234125,15.24860407,139.05,138.93,17.9937]
[1720436234441,0.17,139.04,138.93,25.191]
[1720436234613,37.9812,139.04,138.93,17.9937]
[1720436235012,17.9856,139.0,138.92,0.04265352]
[1720436235419,7.1969,138.95,138.92,0.04265352]
[1720436235911,7.1948,138.99,138.93,7.1978]
[1720436236140,7.1943,139.0,138.92,0.04265352]
[1720436236443,17.9769,139.07,138.92,0.04265352]
[1720436236621,6.0439,139.11,138.98,16.1465]
[1720436236818,1.66519249,139.06,139.02,25.1752]
[1720436237144,1.66519249,139.06,139.02,17.9821]
[1720436237350,1.66519249,139.06,139.03,7.1925]
[1720436237642,1.66519249,139.06,139.04,7.192]
[1720436237823,1.66519249,139.06,139.03,7.1926]
[1720436238026,1.66519249,139.06,139.02,17.9821]
[1720436238242,1.66519249,139.06,138.99,6.5115]
[1720436238455,7.1926,139.04,138.99,6.5115]
[1720436238746,7.1927,139.03,138.98,16.1465]
[1720436238914,17.9799,139.05,138.98,16.1465]
[1720436239337,17.9826,139.03,138.9,24.1797]
[1720436239541,17.9826,139.03,138.9,6.1817]
[1720436239542,20.0,139.02,138.9,6.1817]
[1720436239724,7.1945,139.0,138.92,18.03755352]
[1720436239927,7.1946,139.0,138.93,7.1977]
[1720436240235,7.1954,138.98,138.92,25.23545352]
[1720436240741,7.192,139.05,138.99,7.1945]
[1720436240930,7.1923,139.04,138.98,22.2542]
[1720436241136,8.85649249,139.06,139.0,7.194]
[1720436241315,7.1932,139.02,138.98,15.0591]
[1720436241524,1.66519249,139.06,138.98,15.0591]
[1720436241724,8.0759928,139.07,138.98,15.0591]
[1720436241916,17.9727,139.1,138.98,15.0591]
[1720436242113,7.192,139.05,138.98,15.0591]
[1720436242345,44.81570407,139.09,138.98,15.0591]
[1720436242643,20.0,139.08,138.98,15.0591]
[1720436242814,17.9794,139.05,138.98,15.0591]
[1720436243017,17.9794,139.05,138.93,15.7396]
[1720436243237,7.1952,138.99,138.93,22.9374]
[1720436243445,7.1948,138.99,138.93,15.7396]
[1720436243656,7.1957,138.98,138.93,15.7396]
[1720436243819,17.9827,139.03,138.92,33.77735352]
[1720436244015,20.17,139.04,138.92,33.77735352]
[1720436244016,7.1964,138.96,138.92,15.78225352]
[1720436244216,7.1974,138.94,138.92,15.78225352]
[1720436244453,7.1978,138.94,138.92,15.78225352]
[1720436244746,7.1978,138.93,138.92,15.78225352]
[1720436244916,7.1978,138.93,138.92,0.04265352]
[1720436245121,7.1971,138.95,138.92,0.04265352]
[1720436245361,35.97,139.01,138.92,0.04265352]
[1720436245362,25.1924,138.93,138.92,0.04265352]
[1720436245516,17.9905,138.97,138.92,0.04265352]
[1720436245721,7.1957,138.97,138.92,0.04265352]
[1720436245924,7.1952,138.98,138.92,0.04265352]
[1720436246165,7.1957,138.98,138.92,0.04265352]
[1720436246452,17.9866,139.0,138.92,0.04265352]
[1720436246614,7.1969,138.95,138.92,0.04265352]
[1720436247019,7.1973,138.94,138.92,0.04265352]
[1720436247425,17.9896,138.97,138.92,0.04265352]
[1720436247618,35.9725,139.0,138.92,0.04265352]
[1720436247821,37.9879,138.99,138.92,0.04265352]
[1720436248326,7.1974,138.94,138.92,0.04265352]
[1720436249262,7.1963,138.96,138.92,0.04265352]
[1720436249420,7.1936,139.02,138.95,7.1964]
[1720436249618,7.1944,139.0,138.92,7.24055352]
[1720436249821,16.81173039,139.05,138.92,0.04265352]
[1720436250129,17.9841,139.02,138.92,0.04265352]
[1720436250320,7.1965,138.96,138.92,0.04265352]
[1720436250520,7.1969,138.95,138.92,0.04265352]
[1720436250926,17.9865,139.0,138.92,0.04265352]
[1720436251128,17.9892,138.98,138.92,0.04265352]
[1720436251319,10.59163039,139.01,138.92,0.04265352]
[1720436251519,20.0,139.0,138.92,0.04265352]
[1720436251944,7.1968,138.95,138.92,0.04265352]
[1720436252219,20.0,139.0,138.92,0.04265352]
[1720436252445,7.1964,138.96,138.92,0.04265352]
[1720436252621,7.1976,138.94,138.92,0.04265352]
[1720436252825,7.1978,138.93,138.92,0.04265352]
[1720436253444,7.1973,138.94,138.92,0.04265352]
[1720436253740,25.96554645,139.04,138.92,0.04265352]
[1720436253941,17.9842,139.02,138.92,0.04265352]
[1720436254256,7.1953,138.98,138.92,0.04265352]
[1720436254544,1.65156034,139.01,138.92,0.04265352]
[1720436254843,10.59163039,139.04,138.93,17.9944]
[1720436254844,1.66547488,139.0,138.93,17.9944]
[1720436255058,1.66547488,139.0,138.92,0.04265352]
[1720436255234,1.66547488,139.0,138.92,0.21265352]
[1720436255425,35.9785,138.98,138.77,15.9207]
[1720436255621,47.97,138.93,138.71,15.4752]
[1720436255848,7.2036,138.82,138.71,15.4752]
[1720436256048,18.0038,138.86,138.71,15.4752]
[1720436256363,7.2019,138.86,138.78,7.2055]
[1720436256523,47.97,138.93,138.74,15.3752]
[1720436256524,7.2014,138.87,138.74,15.3752]
[1720436256731,17.9982,138.91,138.8,7.2046]
[1720436256932,20.0,138.9,138.75,6.5515]
[1720436257230,1.66540322,138.89,138.75,6.5515]
[1720436257426,7.2051,138.79,138.75,6.5515]
[1720436257728,18.0029,138.87,138.75,6.5515]
[1720436257931,20.0,138.86,138.75,6.5515]
[1720436258142,7.2011,138.87,138.82,15.4108]
[1720436258360,7.2018,138.86,138.82,15.4108]
[1720436258524,7.2008,138.88,138.82,15.4108]
[1720436258846,1.66533227,138.88,138.82,15.4108]
[1720436259451,7.202,138.85,138.82,15.4108]
[1720436259627,1.66533227,138.88,138.82,15.4108]
[1720436259963,19.66753227,138.88,138.83,6.4891]
[1720436260126,1.66533227,138.88,138.83,6.4891]
[1720436261332,8.86573227,138.88,138.83,6.4891]
[1720436261854,7.2025,138.84,138.83,6.4891]
[1720436262033,1.66533227,138.88,138.73,21.8598]
[1720436262350,7.2047,138.8,138.74,7.2072]
[1720436262662,7.2041,138.81,138.75,7.2071]
[1720436262946,18.0051,138.85,138.73,21.8598]
[1720436263154,18.0093,138.82,138.73,21.8598]
[1720436263343,7.2062,138.77,138.73,21.8598]
[1720436263861,7.2067,138.76,138.73,21.8598]
[1720436264065,7.2074,138.75,138.73,21.8598]
[1720436264290,84.0681,138.82,138.73,15.3829]
[1720436264564,18.013,138.79,138.73,15.3829]
[1720436264728,20.0,138.78,138.73,15.3829]
[1720436264927,7.2077,138.74,138.73,15.3829]
[1720436265228,20.0,138.78,138.73,15.3829]
[1720436265542,7.2073,138.75,138.73,15.3829]
[1720436265851,20.0,138.84,138.73,15.3829]
[1720436266072,18.0132,138.79,138.73,15.3829]
[1720436266360,21.66526203,138.78,138.73,15.3829]
[1720436266559,1.66526203,138.77,138.73,15.3829]
[1720436269044,7.2073,138.75,138.73,15.3829]
[1720436269352,7.2087,138.72,138.71,0.1]
[1720436269664,1.58900053,138.72,138.71,0.1]
[1720436269880,21.58900053,138.72,138.71,0.1]
[1720436270161,28.79770053,138.72,138.71,0.1]
[1720436270359,1.58900053,138.72,138.71,0.1]
[1720436270570,8.79770053,138.72,138.71,0.1]
[1720436270735,28.79770053,138.72,138.71,0.1]
[1720436271137,28.79770053,138.72,138.61,0.1]
[1720436271465,7.2135,138.63,138.61,0.1]
[1720436271672,48.05,138.7,138.61,0.1]
[1720436271978,20.0,138.71,138.61,0.1]
[1720436272271,1.58900053,138.72,138.64,18.0319]
[1720436272447,1.58900053,138.72,138.65,7.2119]
[1720436272647,1.58900053,138.72,138.66,6.4802]
[1720436272959,1.58900053,138.72,138.67,7.2112]
[1720436273162,1.58900053,138.72,138.67,18.0283]
[1720436273482,1.58900053,138.72,138.67,0.19411144]
[1720436273846,7.2092,138.71,138.67,0.19411144]
[1720436274044,1.58900053,138.72,138.62,0.19411144]
[1720436274252,49.63900053,138.72,138.61,6.4907]
[1720436274745,20.0,138.71,138.64,7.2128]
[1720436274949,1.5896917,138.7,138.64,18.0316]
[1720436275356,1.5896917,138.7,138.64,0.19410753]
[1720436275873,7.2113,138.68,138.62,0.19410753]
[1720436276075,1.66547488,138.67,138.62,0.19410753]
[1720436277276,7.213,138.64,138.62,0.19410753]
[1720436277486,7.2134,138.63,138.62,0.19410753]
[1720436277686,1.66547488,138.67,138.62,0.19410753]
[1720436277976,1.66547488,138.67,138.61,18.1351]
[1720436278358,1.66547488,138.67,138.62,0.19410753]
[1720436278564,1.66540322,138.66,138.61,18.1351]
[1720436278949,0.19411144,138.73,138.63,18.0324]
[1720436279176,7.21,138.7,138.63,25.2457]
[1720436279385,0.19411144,138.75,138.64,0.17]
[1720436279553,0.19411144,138.72,138.66,25.2408]
[1720436279750,7.2081,138.74,138.66,25.2404]
[1720436279973,7.2085,138.73,138.66,25.43450753]
[1720436280173,7.2082,138.73,138.66,0.19410753]
[1720436280390,7.2077,138.75,138.66,0.19410753]
[1720436280566,0.19411144,138.76,138.67,7.3812]
[1720436280774,7.40121144,138.76,138.67,7.3812]
[1720436280958,0.19411144,138.79,138.67,0.19410753]
[1720436281157,6.4776,138.73,138.67,0.19410753]
[1720436281357,48.05,138.72,138.61,15.692]
[1720436281655,51.0336,138.76,138.61,15.692]
[1720436281656,1.61644786,138.76,138.61,15.692]
[1720436281851,0.19411144,138.72,138.61,15.692]
[1720436282056,7.2094,138.71,138.61,15.692]
[1720436282278,0.19411144,138.73,138.61,15.88610552]
[1720436282480,0.19411144,138.76,138.61,15.88610552]
[1720436282679,0.19411144,138.74,138.62,15.0]
[1720436282889,49.66644786,138.81,138.64,15.2783]
[1720436282890,7.2069,138.76,138.64,15.2783]
[1720436283183,0.19411144,138.78,138.61,0.29410552]
[1720436283184,48.05,138.77,138.61,0.29410552]
[1720436283480,7.2124,138.65,138.64,0.19410552]
[1720436283681,7.2124,138.65,138.62,0.19410552]
[1720436283854,18.0268,138.69,138.61,0.29410552]
[1720436284053,18.0268,138.69,138.61,0.1]
[1720436284054,7.2128,138.65,138.61,0.1]
[1720436284250,18.0268,138.69,138.61,0.29410552]
[1720436284869,7.2117,138.67,138.61,0.29410552]
[1720436285077,7.2107,138.69,138.61,0.29410552]
[1720436285255,0.19411144,138.71,138.61,0.29410552]
[1720436285657,0.19411144,138.71,138.62,16.3801]
[1720436285658,7.2123,138.66,138.62,16.3801]
[1720436285885,18.0239,138.71,138.62,16.3801]
[1720436285886,48.24411144,138.73,138.62,16.3801]
[1720436286065,7.2134,138.63,138.62,16.3801]
[1720436286385,7.2135,138.63,138.61,0.29410552]
[1720436286586,18.0253,138.7,138.61,0.29410552]
[1720436286768,18.0279,138.68,138.61,0.1]
[1720436286963,18.0279,138.68,138.61,0.29410552]
[1720436287159,18.0306,138.66,138.61,0.29410552]
[1720436287378,7.2139,138.62,138.61,0.29410552]
[1720436287876,7.2139,138.62,138.61,0.1]
[1720436288372,63.2837,138.62,138.61,0.0001]
[1720436288575,7.2155,138.59,138.58,0.19410552]
[1720436288881,7.2181,138.54,138.53,16.3801]
[1720436289084,7.2157,138.59,138.53,16.3801]
[1720436289268,18.0337,138.63,138.53,16.3801]
[1720436289465,7.2155,138.6,138.53,16.3801]
[1720436289663,7.216,138.59,138.53,16.3801]
[1720436289890,7.216,138.58,138.53,16.3801]
[1720436290094,7.2155,138.59,138.53,16.3801]
[1720436290387,18.0334,138.64,138.53,16.3801]
[1720436290775,7.2181,138.54,138.53,16.3801]
[1720436291176,18.0354,138.62,138.53,16.3801]
[1720436291373,7.2177,138.55,138.53,16.3801]
[1720436291688,7.2181,138.54,138.53,16.3801]
[1720436292069,7.2181,138.54,138.41,0.1]